[Event "V. Korchnoy Memorial 2018"]
[Site "St. Petersburg"]
[Date "2018.08.19"]
[Round "5"]
[White "Aleksandrov, Aleksej"]
[Black "Khanin, Semen"]
[Result "1/2-1/2"]
[ECO "E43"]
[WhiteElo "2585"]
[BlackElo "2494"]
[Annotator "ChessBase"]
[PlyCount "92"]
[EventDate "2018.08.15"]
[EventType "swiss"]
[EventCountry "RUS"]
[SourceTitle "playchess.com"]
[Source "ChessBase"]
[SourceQuality "1"]
[TimeControl "5400+30"]

1. d4 {[%emt 0:00:00]} Nf6 {[%emt 0:00:00]} 2. c4 {[%emt 0:00:00]} e6 {[%emt 0:00:00]} 3. Nc3 {[%emt 0:00:00]} Bb4 {[%emt 0:00:00]} 4. e3 {[%emt 0:00:00]} b6 {[%emt 0:00:00]} 5. Bd3 {[%emt 0:00:00]} Bb7 {[%emt 0:00:06]} 6. Nf3 {[%emt 0:00:00]} O-O {[%emt 0:00:28]} 7. Bd2 {[%emt 0:03:30]} Bxc3 {[%emt 0:02:15]} 8. Bxc3 {[%emt 0:00:09]} Ne4 {[%emt 0:00:05]} 9. Bxe4 {[%emt 0:03:52]} Bxe4 {[%emt 0:00:04]} 10. d5 {[%emt 0:00:06]} f6 {[%emt 0:10:07]} 11. O-O {[%emt 0:08:46]} Qe7 {[%emt 0:04:15]} 12. Nh4 {[%emt 0:03:36]} h6 {[%emt 0:15:18]} 13. Qg4 {[%emt 0:05:34]} Bh7 {[%emt 0:00:14]} 14. e4 {[%emt 0:02:39]} Na6 {[%emt 0:02:15]} 15. Ng6 {[%emt 0:04:23]} Bxg6 {[%emt 0:00:29]} 16. Qxg6 {[%emt 0:00:04]} Nc5 {[%emt 0:04:23]} 17. b3 {[%emt 0:01:09]} a5 {[%emt 0:01:12]} 18. Rad1 {[%emt 0:01:26]} e5 {[%emt 0:04:30]} 19. f3 {[%emt 0:01:21]} d6 {[%emt 0:01:52]} 20. Rf2 {[%emt 0:00:14]} Qe8 {[%emt 0:02:22]} 21. Qf5 {[%emt 0:04:54]} Qc8 {[%emt 0:02:15]} 22. Qxc8 {[%emt 0:03:52]} Raxc8 {[%emt 0:00:04]} 23. Re2 {[%emt 0:00:12]} f5 {[%emt 0:02:13]} 24. exf5 {[%emt 0:00:06]} Rxf5 {[%emt 0:00:04]} 25. Be1 {[%emt 0:01:13]} Rcf8 {[%emt 0:01:42]} 26. Bf2 {[%emt 0:00:23]} g5 {[%emt 0:00:46]} 27. Be3 {[%emt 0:01:44]} Kg7 {[%emt 0:00:40]} 28. Rb2 {[%emt 0:00:24]} Ra8 {[%emt 0:00:30]} 29. a3 {[%emt 0:01:51]} Rff8 {[%emt 0:01:13]} 30. b4 {[%emt 0:01:22]} axb4 {[%emt 0:01:05]} 31. axb4 {[%emt 0:00:04]} Nd7 {[%emt 0:02:21]} 32. c5 {[%emt 0:00:09]} bxc5 {[%emt 0:04:58]} 33. bxc5 {[%emt 0:00:04]} Nxc5 {[%emt 0:00:39]} 34. Bxc5 {[%emt 0:00:16]} dxc5 {[%emt 0:00:07]} 35. Rb5 {[%emt 0:00:24]} Ra2 {[%emt 0:04:08]} 36. Rxc5 {[%emt 0:04:53]} Rf7 {[%emt 0:00:04]} 37. Re1 {[%emt 0:03:58]} g4 {[%emt 0:04:29]} 38. Rf1 {[%emt 0:03:33]} gxf3 {[%emt 0:01:11]} 39. Rxf3 {[%emt 0:00:06]} Rxf3 {[%emt 0:05:27]} 40. gxf3 {[%emt 0:00:03]} Kf6 {[%emt 0:00:18]} 41. Rxc7 {[%emt 0:00:53]} Rd2 {[%emt 0:00:08]} 42. Rd7 {[%emt 0:00:23]} Kf5 {[%emt 0:00:06]} 43. d6 {[%emt 0:02:02]} Kf4 {[%emt 0:01:07]} 44. Rf7+ {[%emt 0:00:15]} Kg5 {[%emt 0:00:02]} 45. Rg7+ {[%emt 0:02:54]} Kf4 {[%emt 0:00:07]} 46. Rf7+ {[%emt 0:05:30]} Kg5 {[%emt 0:00:07]} 1/2-1/2

[Event "V. Korchnoy Memorial 2018"]
[Site "St. Petersburg"]
[Date "2018.08.19"]
[Round "5"]
[White "Stupak, Kirill"]
[Black "Yashmetov, Mikhail"]
[Result "1-0"]
[ECO "D77"]
[WhiteElo "2573"]
[BlackElo "2365"]
[Annotator "ChessBase"]
[PlyCount "65"]
[EventDate "2018.08.15"]
[EventType "swiss"]
[EventCountry "RUS"]
[SourceTitle "playchess.com"]
[Source "ChessBase"]
[SourceQuality "1"]
[TimeControl "5400+30"]

1. d4 {[%emt 0:09:18]} Nf6 {[%emt 0:00:00]} 2. g3 {[%emt 0:00:08]} g6 {[%emt 0:00:07]} 3. Bg2 {[%emt 0:00:03]} d5 {[%emt 0:00:04]} 4. c4 {[%emt 0:00:05]} Bg7 {[%emt 0:00:10]} 5. Nf3 {[%emt 0:00:04]} O-O {[%emt 0:00:06]} 6. O-O {[%emt 0:00:03]} Nc6 {[%emt 0:00:32]} 7. Na3 {[%emt 0:00:08]} dxc4 {[%emt 0:00:17]} 8. Nxc4 {[%emt 0:00:03]} Be6 {[%emt 0:00:26]} 9. b3 {[%emt 0:00:01]} a5 {[%emt 0:00:22]} 10. a4 {[%emt 0:00:01]} Bd5 {[%emt 0:00:47]} 11. e3 {[%emt 0:00:37]} Ne4 {[%emt 0:00:29]} 12. Ba3 {[%emt 0:00:47]} Kh8 {[%emt 0:03:09]} 13. Rc1 {[%emt 0:01:53]} f5 {[%emt 0:03:06]} 14. Qe2 {[%emt 0:03:04]} g5 {[%emt 0:08:57]} 15. h4 {[%emt 0:09:12]} f4 {[%emt 0:06:34]} 16. exf4 {[%emt 0:08:41]} gxf4 {[%emt 0:00:34]} 17. g4 {[%emt 0:00:22]} Qd7 {[%emt 0:17:16]} 18. Nce5 {[%emt 0:13:02]} Nxe5 {[%emt 0:00:29]} 19. Nxe5 {[%emt 0:00:27]} Bxe5 {[%emt 0:00:44]} 20. dxe5 {[%emt 0:01:19]} f3 {[%emt 0:15:22]} 21. Bxf3 {[%emt 0:00:03]} Rxf3 {[%emt 0:00:05]} 22. e6 {[%emt 0:00:11]} Qxe6 {[%emt 0:02:05]} 23. Qxf3 {[%emt 0:00:01]} Rg8 {[%emt 0:00:40]} 24. g5 {[%emt 0:05:21]} Qe5 {[%emt 0:19:11]} 25. Qe3 {[%emt 0:09:14]} Rg7 {[%emt 0:06:47]} 26. f4 {[%emt 0:21:19]} Qf5 {[%emt 0:01:29]} 27. Bb2 {[%emt 0:00:15]} Qg4+ {[%emt 0:01:02]} 28. Kh2 {[%emt 0:00:02]} Nf6 {[%emt 0:00:16]} 29. Qf2 {[%emt 0:03:24]} Be6 {[%emt 0:04:55]} 30. f5 {[%emt 0:06:24]} Ne4 {[%emt 0:03:26]} 31. Bxg7+ {[%emt 0:02:09]} Kg8 {[%emt 0:00:08]} 32. Qf3 {[%emt 0:02:00]} Qxh4+ {[%emt 0:00:13]} 33. Qh3 {[%emt 0:00:01]} 1-0

[Event "V. Korchnoy Memorial 2018"]
[Site "St. Petersburg"]
[Date "2018.08.19"]
[Round "5"]
[White "Tsydypov, Zhamsaran"]
[Black "Ponkratov, Pavel"]
[Result "1-0"]
[ECO "C11"]
[WhiteElo "2520"]
[BlackElo "2605"]
[Annotator "ChessBase"]
[PlyCount "57"]
[EventDate "2018.08.15"]
[EventType "swiss"]
[EventCountry "RUS"]
[SourceTitle "playchess.com"]
[Source "ChessBase"]
[SourceQuality "1"]
[TimeControl "5400+30"]

1. e4 {[%emt 0:00:09]} e6 {[%emt 0:00:00]} 2. d4 {[%emt 0:00:25]} d5 {[%emt 0:00:00]} 3. Nc3 {[%emt 0:01:03]} Nf6 {[%emt 0:00:00]} 4. e5 {[%emt 0:00:34]} Nfd7 {[%emt 0:00:00]} 5. f4 {[%emt 0:00:14]} c5 {[%emt 0:00:00]} 6. Nf3 {[%emt 0:00:16]} Nc6 {[%emt 0:00:00]} 7. Be3 {[%emt 0:00:06]} Rb8 {[%emt 0:00:02]} 8. Be2 {[%emt 0:08:06]} Qa5 {[%emt 0:00:09]} 9. a3 {[%emt 0:01:33]} b5 {[%emt 0:00:21]} 10. O-O {[%emt 0:04:33]} b4 {[%emt 0:01:37]} 11. axb4 {[%emt 0:00:25]} Qxb4 {[%emt 0:00:05]} 12. f5 {[%emt 0:07:27]} cxd4 {[%emt 0:01:16]} 13. fxe6 {[%emt 0:00:40]} fxe6 {[%emt 0:00:53]} 14. Nxd4 {[%emt 0:01:20]} Nxd4 {[%emt 0:00:36]} 15. Bxd4 {[%emt 0:00:08]} Bc5 {[%emt 0:00:04]} 16. Bxc5 {[%emt 0:01:11]} Qxc5+ {[%emt 0:00:05]} 17. Kh1 {[%emt 0:00:06]} Rf8 {[%emt 0:06:25]} 18. Qd3 {[%emt 0:03:22]} g6 {[%emt 0:05:06]} 19. Qh3 {[%emt 0:06:00]} Rxf1+ {[%emt 0:01:35]} 20. Rxf1 {[%emt 0:00:16]} Qe7 {[%emt 0:04:02]} 21. Nb5 {[%emt 0:02:51]} Kd8 {[%emt 0:07:53]} 22. Nxa7 {[%emt 0:03:55]} Bb7 {[%emt 0:03:25]} 23. Qc3 {[%emt 0:00:50]} Qg5 {[%emt 0:06:14]} 24. Nb5 {[%emt 0:02:45]} Rc8 {[%emt 0:00:38]} 25. Qa5+ {[%emt 0:01:50]} Ke7 {[%emt 0:00:04]} 26. Qb4+ {[%emt 0:01:41]} Rc5 {[%emt 0:00:05]} 27. Nd6 {[%emt 0:00:21]} Qxe5 {[%emt 0:00:06]} 28. Nxb7 {[%emt 0:00:09]} Qxe2 {[%emt 0:00:05]} 29. Qh4+ {[%emt 0:00:04]} 1-0

[Event "V. Korchnoy Memorial 2018"]
[Site "St. Petersburg"]
[Date "2018.08.19"]
[Round "5"]
[White "Stefansson, Hannes"]
[Black "Kozionov, Kirill"]
[Result "0-1"]
[ECO "B90"]
[WhiteElo "2511"]
[BlackElo "2461"]
[Annotator "RC"]
[PlyCount "68"]
[EventDate "2018.08.15"]
[EventType "swiss"]
[EventCountry "RUS"]
[SourceTitle "playchess.com"]
[Source "ChessBase"]
[SourceQuality "1"]
[TimeControl "5400+30"]

1. e4 {[%emt 0:00:00]} c5 {[%emt 0:07:30]} 2. Nf3 {[%emt 0:00:00]} d6 {[%emt 0:00:09]} 3. d4 {[%emt 0:00:00]} cxd4 {[%emt 0:00:13]} 4. Nxd4 {[%emt 0:00:02]} Nf6 {[%emt 0:00:08]} 5. Nc3 {[%emt 0:00:10]} a6 {[%emt 0:00:13]} 6. h3 {[%emt 0:00:18]} e5 {[%emt 0:03:01]} 7. Nde2 {[%emt 0:00:33]} h5 {[%emt 0:00:34]} 8. g3 {[%emt 0:01:37]} b5 {[%emt 0:06:41]} 9. Nd5 {[%emt 0:04:14]} Nbd7 {[%emt 0:04:12]} 10. Bg5 {[%emt 0:05:06]} Bb7 {[%emt 0:02:14]} 11. Nec3 {[%emt 0:01:00]} Rc8 {[%emt 0:08:07]} 12. Bg2 {[%emt 0:06:02]} Nb6 {[%emt 0:03:32]} 13. Bxf6 {[%emt 0:05:15]} gxf6 {[%emt 0:00:05]} 14. O-O {[%emt 0:00:35]} h4 {[%emt 0:01:41]} 15. g4 {[%emt 0:01:01]} Bh6 {[%emt 0:03:39]} 16. Qd3 {[%emt 0:02:54]} Nxd5 {[%emt 0:22:37]} 17. Nxd5 {[%emt 0:01:33]} Bxd5 {[%emt 0:02:01]} 18. exd5 {[%emt 0:00:25]} Rc4 {[%emt 0:08:07]} 19. a4 {[%emt 0:05:38]} Rd4 {[%emt 0:01:21]} 20. Qc3 {[%emt 0:03:47]} O-O {[%emt 0:05:51]} 21. Qc6 {[%emt 0:00:27]} b4 {[%emt 0:10:11]} 22. Qxa6 {[%emt 0:02:12]} f5 {[%emt 0:00:30]} 23. Rad1 {[%emt 0:08:55]} Rf4 {[%emt 0:00:11]} 24. gxf5 {[%emt 0:00:42]} Kh8 {[%emt 0:00:47]} 25. Kh1 {[%emt 0:00:25]} Rxf5 {[%emt 0:01:15]} 26. Qe2 {[%emt 0:01:07]} Rf4 {[%emt 0:02:27]} 27. Rg1 {[%emt 0:00:55]} Qf6 {[%emt 0:00:46]} 28. Rdf1 {[%emt 0:01:05]} Qf5 {[%emt 0:01:21]} 29. Qd3 {[%emt 0:02:16]} e4 {[%emt 0:00:33]} 30. Qd4+ {[%emt 0:01:07]} Kh7 {[%emt 0:02:45]} 31. Re1 {[%emt 0:00:32]} Re8 {[%emt 0:00:05]} 32. Re3 {[%emt 0:00:39]} Rxf2 {[%emt 0:01:13]} 33. Bxe4 {[%emt 0:00:25]} Rxe4 {[%emt 0:00:31]} 34. Qxe4 {[%emt 0:00:06]} Bxe3 {[%emt 0:00:08]} 0-1

[Event "V. Korchnoy Memorial 2018"]
[Site "St. Petersburg"]
[Date "2018.08.19"]
[Round "5"]
[White "Hamitevici, Vladimir"]
[Black "Mchedlishvili, Mikheil"]
[Result "1-0"]
[ECO "A20"]
[WhiteElo "2502"]
[BlackElo "2608"]
[Annotator "ChessBase"]
[PlyCount "85"]
[EventDate "2018.08.15"]
[EventType "swiss"]
[EventCountry "RUS"]
[SourceTitle "playchess.com"]
[Source "ChessBase"]
[SourceQuality "1"]
[TimeControl "5400+30"]

1. c4 {[%emt 0:00:35]} e5 {[%emt 0:00:07]} 2. d3 {[%emt 0:01:05]} Nf6 {[%emt 0:01:55]} 3. Nf3 {[%emt 0:01:05]} Bb4+ {[%emt 0:04:12]} 4. Nbd2 {[%emt 0:01:24]} Qe7 {[%emt 0:08:44]} 5. a3 {[%emt 0:01:58]} Bxd2+ {[%emt 0:04:05]} 6. Bxd2 {[%emt 0:00:38]} e4 {[%emt 0:01:42]} 7. Nd4 {[%emt 0:09:19]} O-O {[%emt 0:09:39]} 8. Nb5 {[%emt 0:11:32]} Na6 {[%emt 0:02:16]} 9. d4 {[%emt 0:02:16]} d5 {[%emt 0:07:27]} 10. c5 {[%emt 0:06:04]} Bd7 {[%emt 0:07:18]} 11. Nc3 {[%emt 0:04:35]} c6 {[%emt 0:14:31]} 12. Bf4 {[%emt 0:02:36]} Ne8 {[%emt 0:00:29]} 13. Qd2 {[%emt 0:09:48]} Nac7 {[%emt 0:02:09]} 14. f3 {[%emt 0:00:26]} Bf5 {[%emt 0:03:11]} 15. g4 {[%emt 0:05:13]} Bg6 {[%emt 0:01:23]} 16. Bg2 {[%emt 0:00:16]} exf3 {[%emt 0:02:13]} 17. Bxf3 {[%emt 0:00:37]} Ne6 {[%emt 0:00:37]} 18. Bg3 {[%emt 0:08:48]} f5 {[%emt 0:07:04]} 19. gxf5 {[%emt 0:01:21]} Bxf5 {[%emt 0:00:15]} 20. h4 {[%emt 0:01:39]} Rf7 {[%emt 0:03:04]} 21. b4 {[%emt 0:07:12]} Nf6 {[%emt 0:01:27]} 22. Bd6 {[%emt 0:01:04]} Qd7 {[%emt 0:03:21]} 23. Rg1 {[%emt 0:06:06]} b6 {[%emt 0:00:54]} 24. h5 {[%emt 0:03:59]} Re8 {[%emt 0:01:16]} 25. O-O-O {[%emt 0:00:50]} bxc5 {[%emt 0:01:39]} 26. dxc5 {[%emt 0:03:34]} d4 {[%emt 0:01:10]} 27. Na4 {[%emt 0:01:04]} Be4 {[%emt 0:03:04]} 28. h6 {[%emt 0:02:10]} g6 {[%emt 0:00:45]} 29. Nb2 {[%emt 0:03:52]} a5 {[%emt 0:03:10]} 30. bxa5 {[%emt 0:00:24]} Qa7 {[%emt 0:01:49]} 31. Na4 {[%emt 0:00:33]} Bxf3 {[%emt 0:00:53]} 32. exf3 {[%emt 0:00:03]} Nd5 {[%emt 0:00:07]} 33. Rde1 {[%emt 0:01:43]} Rxf3 {[%emt 0:01:52]} 34. Qc2 {[%emt 0:00:16]} Qf7 {[%emt 0:00:24]} 35. a6 {[%emt 0:00:38]} d3 {[%emt 0:01:27]} 36. Qc4 {[%emt 0:01:24]} Qf6 {[%emt 0:01:30]} 37. Be5 {[%emt 0:00:45]} Qf5 {[%emt 0:00:18]} 38. Qe4 {[%emt 0:00:40]} Qf7 {[%emt 0:00:17]} 39. Bb2 {[%emt 0:01:18]} d2+ {[%emt 0:01:10]} 40. Kxd2 {[%emt 0:00:05]} Qf8 {[%emt 0:00:33]} 41. Rxg6+ {[%emt 0:00:31]} hxg6 {[%emt 0:00:01]} 42. Qxg6+ {[%emt 0:00:07]} Ng7 {[%emt 0:00:04]} 43. h7+ {[%emt 0:00:24]} 1-0

[Event "V. Korchnoy Memorial 2018"]
[Site "St. Petersburg"]
[Date "2018.08.19"]
[Round "5"]
[White "Savitskiy, Sergey"]
[Black "Levin, Evgeny A"]
[Result "1/2-1/2"]
[ECO "B97"]
[WhiteElo "2418"]
[BlackElo "2523"]
[Annotator "RC"]
[PlyCount "80"]
[EventDate "2018.08.15"]
[EventType "swiss"]
[EventCountry "RUS"]
[SourceTitle "playchess.com"]
[Source "ChessBase"]
[SourceQuality "1"]
[TimeControl "5400+30"]

1. e4 {[%emt 0:00:00]} c5 {[%emt 0:03:33]} 2. Nf3 {[%emt 0:00:00]} d6 {[%emt 0:00:05]} 3. d4 {[%emt 0:00:00]} Nf6 {[%emt 0:00:05]} 4. Nc3 {[%emt 0:00:00]} cxd4 {[%emt 0:00:05]} 5. Nxd4 {[%emt 0:00:00]} a6 {[%emt 0:00:04]} 6. Bg5 {[%emt 0:00:04]} e6 {[%emt 0:00:06]} 7. f4 {[%emt 0:04:25]} Qb6 {[%emt 0:01:27]} 8. Qd2 {[%emt 0:00:34]} Qxb2 {[%emt 0:00:19]} 9. Rb1 {[%emt 0:00:05]} Qa3 {[%emt 0:00:03]} 10. Be2 {[%emt 0:00:23]} Nbd7 {[%emt 0:11:19]} 11. O-O {[%emt 0:00:21]} Be7 {[%emt 0:02:38]} 12. f5 {[%emt 0:03:26]} e5 {[%emt 0:09:47]} 13. Ne6 {[%emt 0:00:55]} fxe6 {[%emt 0:00:29]} 14. fxe6 {[%emt 0:00:06]} O-O {[%emt 0:15:45]} 15. exd7 {[%emt 0:00:44]} Bxd7 {[%emt 0:00:04]} 16. Nd5 {[%emt 0:09:44]} Bd8 {[%emt 0:06:03]} 17. Bxf6 {[%emt 0:05:40]} Bxf6 {[%emt 0:09:59]} 18. Nxf6+ {[%emt 0:07:41]} Rxf6 {[%emt 0:11:29]} 19. Rxf6 {[%emt 0:21:40]} gxf6 {[%emt 0:00:04]} 20. Rb3 {[%emt 0:12:44]} Qc5+ {[%emt 0:01:39]} 21. Kh1 {[%emt 0:00:07]} Qd4 {[%emt 0:03:14]} 22. Qxd4 {[%emt 0:00:14]} exd4 {[%emt 0:00:04]} 23. Rxb7 {[%emt 0:02:11]} Bb5 {[%emt 0:11:37]} 24. Bg4 {[%emt 0:10:11]} Re8 {[%emt 0:00:32]} 25. Kg1 {[%emt 0:08:28]} Rxe4 {[%emt 0:01:06]} 26. Bf3 {[%emt 0:00:48]} Re1+ {[%emt 0:03:23]} 27. Kf2 {[%emt 0:00:05]} Re5 {[%emt 0:00:04]} 28. Rb6 {[%emt 0:02:58]} Rc5 {[%emt 0:00:09]} 29. Be4 {[%emt 0:00:08]} f5 {[%emt 0:01:28]} 30. Bd3 {[%emt 0:00:10]} Bxd3 {[%emt 0:00:22]} 31. cxd3 {[%emt 0:00:03]} Rc2+ {[%emt 0:00:41]} 32. Kf3 {[%emt 0:00:19]} Rxa2 {[%emt 0:00:13]} 33. Rxd6 {[%emt 0:00:06]} Kg7 {[%emt 0:01:06]} 34. Rxd4 {[%emt 0:00:19]} a5 {[%emt 0:00:23]} 35. Rd7+ {[%emt 0:01:00]} Kg6 {[%emt 0:00:03]} 36. Rd6+ {[%emt 0:00:18]} Kf7 {[%emt 0:02:32]} 37. Rd7+ {[%emt 0:01:04]} Kg6 {[%emt 0:00:03]} 38. Rd6+ {[%emt 0:00:07]} Kf7 {[%emt 0:00:03]} 39. Rd7+ {[%emt 0:00:05]} Kg6 {[%emt 0:00:05]} 40. Rd6+ {[%emt 0:00:04]} Kf7 {[%emt 0:00:06] Ke4} 1/2-1/2

[Event "V. Korchnoy Memorial 2018"]
[Site "St. Petersburg"]
[Date "2018.08.19"]
[Round "5"]
[White "Bykov, Oleg"]
[Black "Pridorozhni, Aleksei"]
[Result "1/2-1/2"]
[ECO "A43"]
[WhiteElo "2383"]
[BlackElo "2564"]
[Annotator "ChessBase"]
[PlyCount "81"]
[EventDate "2018.08.15"]
[EventType "swiss"]
[EventCountry "RUS"]
[SourceTitle "playchess.com"]
[Source "ChessBase"]
[SourceQuality "1"]
[TimeControl "5400+30"]

1. d4 {[%emt 0:00:00]} g6 {[%emt 0:01:04]} 2. c4 {[%emt 0:00:27]} Bg7 {[%emt 0:00:07]} 3. Nc3 {[%emt 0:00:14]} c5 {[%emt 0:00:09]} 4. d5 {[%emt 0:00:33]} Bxc3+ {[%emt 0:00:08]} 5. bxc3 {[%emt 0:00:02]} f5 {[%emt 0:00:06]} 6. Nf3 {[%emt 0:01:58]} d6 {[%emt 0:00:19]} 7. h4 {[%emt 0:02:55]} Nf6 {[%emt 0:00:15]} 8. Bg5 {[%emt 0:03:00]} Qa5 {[%emt 0:04:08]} 9. Bxf6 {[%emt 0:02:05]} exf6 {[%emt 0:02:49]} 10. Qc2 {[%emt 0:00:40]} h5 {[%emt 0:03:05]} 11. e3 {[%emt 0:01:26]} Nd7 {[%emt 0:01:01]} 12. Rb1 {[%emt 0:01:39]} Ne5 {[%emt 0:04:33]} 13. Nxe5 {[%emt 0:06:40]} fxe5 {[%emt 0:00:28]} 14. Bd3 {[%emt 0:06:45]} Qc7 {[%emt 0:03:58]} 15. f4 {[%emt 0:02:15]} exf4 {[%emt 0:07:06]} 16. exf4 {[%emt 0:00:11]} Bd7 {[%emt 0:01:00]} 17. O-O {[%emt 0:02:08]} Kf7 {[%emt 0:02:39]} 18. Qb3 {[%emt 0:02:49]} b6 {[%emt 0:00:33]} 19. a4 {[%emt 0:03:26]} Rhe8 {[%emt 0:01:03]} 20. Kf2 {[%emt 0:01:00]} Re7 {[%emt 0:01:19]} 21. Rfe1 {[%emt 0:00:08]} Rxe1 {[%emt 0:00:42]} 22. Rxe1 {[%emt 0:00:28]} Re8 {[%emt 0:00:06]} 23. g3 {[%emt 0:07:11]} Rxe1 {[%emt 0:00:56]} 24. Kxe1 {[%emt 0:00:03]} Ke8 {[%emt 0:00:11]} 25. Kd2 {[%emt 0:01:00]} Kd8 {[%emt 0:00:06]} 26. Bc2 {[%emt 0:01:23]} Kc8 {[%emt 0:00:07]} 27. Bd3 {[%emt 0:00:59]} Qd8 {[%emt 0:00:08]} 28. Bc2 {[%emt 0:15:36]} Kc7 {[%emt 0:02:14]} 29. Bd3 {[%emt 0:00:44]} Qc8 {[%emt 0:05:22]} 30. Bc2 {[%emt 0:00:45]} Qa6 {[%emt 0:00:48]} 31. Kc1 {[%emt 0:01:20]} Kd8 {[%emt 0:00:53]} 32. Kb2 {[%emt 0:01:45]} Ke7 {[%emt 0:00:53]} 33. Kc1 {[%emt 0:00:35]} Kf8 {[%emt 0:00:12]} 34. Kb2 {[%emt 0:00:31]} Qa5 {[%emt 0:00:48]} 35. Qa2 {[%emt 0:01:47]} Be8 {[%emt 0:01:08]} 36. Qb3 {[%emt 0:00:40]} Qa6 {[%emt 0:00:14]} 37. Kc1 {[%emt 0:00:49]} Kg7 {[%emt 0:00:54]} 38. Kd2 {[%emt 0:02:08]} Bd7 {[%emt 0:00:19]} 39. Kc1 {[%emt 0:00:57]} Qa5 {[%emt 0:00:29]} 40. Kb2 {[%emt 0:00:27]} Kg8 {[%emt 0:00:28]} 41. Qa2 {[%emt 0:00:28]} 1/2-1/2

[Event "V. Korchnoy Memorial 2018"]
[Site "St. Petersburg"]
[Date "2018.08.19"]
[Round "5"]
[White "Tran, Minh Thang"]
[Black "Paravyan, David"]
[Result "0-1"]
[ECO "A45"]
[WhiteElo "2335"]
[BlackElo "2630"]
[Annotator "ChessBase"]
[PlyCount "96"]
[EventDate "2018.08.15"]
[EventType "swiss"]
[EventCountry "RUS"]
[SourceTitle "playchess.com"]
[Source "ChessBase"]
[SourceQuality "1"]
[TimeControl "5400+30"]

1. d4 {[%emt 0:00:00]} Nf6 {[%emt 0:06:10]} 2. Bf4 {[%emt 0:00:00]} c5 {[%emt 0:00:03]} 3. e3 {[%emt 0:00:00]} Qb6 {[%emt 0:00:05]} 4. Nc3 {[%emt 0:00:00]} a6 {[%emt 0:00:09]} 5. a3 {[%emt 0:00:28]} d5 {[%emt 0:00:35]} 6. Nf3 {[%emt 0:03:47]} cxd4 {[%emt 0:04:28]} 7. exd4 {[%emt 0:00:36]} Bg4 {[%emt 0:00:05]} 8. Be2 {[%emt 0:01:24]} Nc6 {[%emt 0:00:35]} 9. Na4 {[%emt 0:00:37]} Qd8 {[%emt 0:17:06]} 10. Nc5 {[%emt 0:06:08]} e6 {[%emt 0:03:53]} 11. b4 {[%emt 0:08:00]} Ne4 {[%emt 0:15:50]} 12. Nxb7 {[%emt 0:06:50]} Qb6 {[%emt 0:03:34]} 13. Nc5 {[%emt 0:01:37]} Nc3 {[%emt 0:00:07]} 14. Qd3 {[%emt 0:00:41]} Nxe2 {[%emt 0:00:08]} 15. Kxe2 {[%emt 0:00:54]} Bf5 {[%emt 0:05:00]} 16. Qc3 {[%emt 0:04:28]} Qb5+ {[%emt 0:01:01]} 17. Kd2 {[%emt 0:02:17]} a5 {[%emt 0:05:14]} 18. bxa5 {[%emt 0:06:46]} Bxc5 {[%emt 0:01:57]} 19. dxc5 {[%emt 0:08:56]} O-O {[%emt 0:03:51]} 20. Nd4 {[%emt 0:02:49]} Nxd4 {[%emt 0:01:08]} 21. Qxd4 {[%emt 0:02:06]} Rxa5 {[%emt 0:00:26]} 22. a4 {[%emt 0:04:27]} Qxc5 {[%emt 0:01:20]} 23. Qxc5 {[%emt 0:00:38]} Rxc5 {[%emt 0:00:04]} 24. c3 {[%emt 0:02:17]} Ra8 {[%emt 0:01:07]} 25. Bd6 {[%emt 0:17:21]} Rca5 {[%emt 0:00:07]} 26. Ra3 {[%emt 0:00:03]} R5a6 {[%emt 0:03:56]} 27. Bb4 {[%emt 0:01:46]} Rxa4 {[%emt 0:00:22]} 28. Rha1 {[%emt 0:00:03]} Rxa3 {[%emt 0:00:04]} 29. Rxa3 {[%emt 0:00:02]} Rb8 {[%emt 0:03:46]} 30. Ke3 {[%emt 0:00:11]} h5 {[%emt 0:01:04]} 31. Ra5 {[%emt 0:02:10]} h4 {[%emt 0:03:23]} 32. f3 {[%emt 0:09:06]} Kh7 {[%emt 0:00:17]} 33. g4 {[%emt 0:00:28]} hxg3 {[%emt 0:02:40]} 34. hxg3 {[%emt 0:00:04]} Kg6 {[%emt 0:01:19]} 35. Ra2 {[%emt 0:01:41]} Kh7 {[%emt 0:10:45]} 36. Ra7 {[%emt 0:03:41]} Bg6 {[%emt 0:00:16]} 37. Kd4 {[%emt 0:00:33]} Rc8 {[%emt 0:01:01]} 38. Bc5 {[%emt 0:00:28]} Kg8 {[%emt 0:00:22]} 39. Ra6 {[%emt 0:01:52]} Bc2 {[%emt 0:01:05]} 40. Ra5 {[%emt 0:02:18]} Bd1 {[%emt 0:00:48]} 41. Ke3 {[%emt 0:00:40]} Kh7 {[%emt 0:00:09]} 42. Bb4 {[%emt 0:02:14]} Kg6 {[%emt 0:01:24]} 43. Rc5 {[%emt 0:00:31]} Ra8 {[%emt 0:00:54]} 44. Ba5 {[%emt 0:00:25]} Bb3 {[%emt 0:00:31]} 45. Kf4 {[%emt 0:00:34]} Bc4 {[%emt 0:00:34]} 46. Ke3 {[%emt 0:00:18]} Rh8 {[%emt 0:00:19]} 47. Bb4 {[%emt 0:00:44]} Rh2 {[%emt 0:00:15]} 48. Ra5 {[%emt 0:00:30]} e5 {[%emt 0:00:06]} 0-1

[Event "V. Korchnoy Memorial 2018"]
[Site "St. Petersburg"]
[Date "2018.08.20"]
[Round "6"]
[White "Paravyan, David"]
[Black "Golubov, Saveliy"]
[Result "1-0"]
[ECO "C42"]
[WhiteElo "2630"]
[BlackElo "2470"]
[Annotator "RC"]
[PlyCount "55"]
[EventDate "2018.08.15"]
[EventType "swiss"]
[EventCountry "RUS"]
[SourceTitle "playchess.com"]
[Source "ChessBase"]
[SourceQuality "1"]
[TimeControl "5400+30"]

1. e4 {[%emt 0:04:37]} e5 {[%emt 0:00:00]} 2. Nf3 {[%emt 0:00:04]} Nf6 {[%emt 0:00:00]} 3. Nxe5 {[%emt 0:00:04]} d6 {[%emt 0:00:00]} 4. Nf3 {[%emt 0:00:04]} Nxe4 {[%emt 0:00:10]} 5. d4 {[%emt 0:00:03]} d5 {[%emt 0:00:32]} 6. Bd3 {[%emt 0:00:06]} Bd6 {[%emt 0:00:16]} 7. O-O {[%emt 0:00:07]} O-O {[%emt 0:00:08]} 8. c4 {[%emt 0:00:01]} c6 {[%emt 0:00:16]} 9. Qb3 {[%emt 0:03:12]} dxc4 {[%emt 0:33:39]} 10. Bxc4 {[%emt 0:00:52]} Nd7 {[%emt 0:03:49]} 11. Re1 {[%emt 0:00:04]} Ndf6 {[%emt 0:04:54]} 12. Nbd2 {[%emt 0:16:34]} Nxd2 {[%emt 0:05:52]} 13. Bxd2 {[%emt 0:00:14]} Qb6 {[%emt 0:00:48]} 14. Qd3 {[%emt 0:24:24]} Qxb2 {[%emt 0:09:03]} 15. Rab1 {[%emt 0:00:14]} Qa3 {[%emt 0:00:17]} 16. Qc2 {[%emt 0:00:14]} Nd5 {[%emt 0:06:22]} 17. Rb3 {[%emt 0:19:47]} Qa4 {[%emt 0:00:14]} 18. Bxd5 {[%emt 0:01:27]} cxd5 {[%emt 0:00:08]} 19. Ng5 {[%emt 0:00:02]} g6 {[%emt 0:00:43]} 20. Nxh7 {[%emt 0:00:21]} Bf5 {[%emt 0:06:08]} 21. Nf6+ {[%emt 0:02:08]} Kg7 {[%emt 0:00:09]} 22. Bh6+ {[%emt 0:06:26]} Kxf6 {[%emt 0:02:08]} 23. g4 {[%emt 0:02:07]} Bf4 {[%emt 0:05:01]} 24. Qc7 {[%emt 0:00:35]} Bxh6 {[%emt 0:05:44]} 25. Qe5+ {[%emt 0:00:16]} Kg5 {[%emt 0:00:05]} 26. h4+ {[%emt 0:02:59]} Kxh4 {[%emt 0:03:42]} 27. Rh3+ {[%emt 0:00:36]} Kg5 {[%emt 0:00:12]} 28. Qe7+ {[%emt 0:00:27]} 1-0